fUSD/lending_fUSD_20250916
["ID","MTS","AMOUNT","RATE_DAILY","PERIOD"]
[385846343,1758059510739,-607.8,0.00032328,6]
[385846344,1758059510751,-671.41,0.00032328,6]
[385846345,1758059510761,-400.0,0.00032328,6]
[385846346,1758059510771,-408.08233389,0.00032328,6]
[385846347,1758059510781,-1101.76,0.00032328,6]
[385846348,1758059510792,-644.78,0.00032328,6]
[385846349,1758059510802,-400.0,0.00032328,6]
[385846350,1758059510811,-400.0,0.00032328,6]
[385846351,1758059510821,-400.0,0.00032328,6]
[385846352,1758059510831,-400.0,0.00032328,6]
[385846353,1758059510841,-783.19,0.00032328,6]
[385846354,1758059510850,-400.0,0.00032328,6]
[385846355,1758059510860,-400.0,0.00032328,6]
[385846356,1758059510869,-400.0,0.00032328,6]
[385846357,1758059510879,-400.0,0.00032328,6]
[385846358,1758059510889,-467.3,0.00032328,6]
[385846359,1758059510898,-400.0,0.00032328,6]
[385846360,1758059510909,-450.16,0.00032328,6]
[385846361,1758059510918,-400.0,0.00032328,6]
[385846362,1758059510928,-400.0,0.00032328,6]
[385846363,1758059510938,-400.0,0.00032328,6]
[385846364,1758059510947,-400.0,0.00032328,6]
[385846365,1758059510957,-400.0,0.00032328,6]
[385846366,1758059510967,-1181.9,0.00032328,6]
[385846367,1758059510978,-373.94666996,0.00032328,6]
[385846368,1758059510989,-400.0,0.00032328,6]
[385846369,1758059511000,-431.77,0.00032328,6]
[385846370,1758059511010,-400.0,0.00032328,6]
[385846371,1758059511021,-400.0,0.00032328,6]
[385846372,1758059511031,-1421.99,0.00032328,6]
[385846373,1758059511041,-604.53,0.00032328,6]
[385846374,1758059511052,-400.0,0.00032328,6]
[385846375,1758059511061,-417.22,0.00032328,6]
[385846376,1758059511071,-633.44,0.00032328,6]
[385846377,1758059511081,-400.0,0.00032328,6]
[385846378,1758059511091,-400.0,0.00032328,6]
[385846379,1758059511101,-400.0,0.00032328,6]
[385846380,1758059511111,-400.0,0.00032328,6]
[385846381,1758059511121,-400.0,0.0003239,6]
[385846382,1758059511130,-400.0,0.0003239,6]
[385846383,1758059511140,-892.92,0.0003239,6]
[385846384,1758059511150,-400.0,0.0003239,6]
[385846385,1758059511160,-568.06,0.0003239,6]
[385846386,1758059511170,-1072.67,0.0003239,6]
[385846387,1758059511179,-512.55,0.0003239,6]
[385846388,1758059511189,-774.02,0.0003239,5]
[385846389,1758059511416,-400.0,0.0003239,6]
[385846390,1758059511429,-400.0,0.0003239,6]
[385846391,1758059511439,-15084.844287,0.00032404,2]
[385846392,1758059511450,-1556.21254549,0.00032452,2]
[385846393,1758059511460,-170.77,0.00032468,30]
[385846394,1758059511472,-2058.39,0.00032563,6]
[385846395,1758059511482,-400.0,0.00032563,6]
[385846396,1758059511491,-412.53,0.00032563,6]
[385846397,1758059511501,-618.61,0.00032563,6]
[385846398,1758059511511,-1651.68,0.00032563,6]
[385846399,1758059511520,-2717.2,0.00032563,6]
[385846400,1758059511530,-400.0,0.00032563,6]
[385846401,1758059511541,-462.71,0.00032563,6]
[385846402,1758059511551,-400.0,0.00032563,6]
[385846403,1758059511561,-400.0,0.00032563,6]
[385846404,1758059511571,-400.0,0.00032563,6]
[385846405,1758059511581,-400.0,0.00032563,6]
[385846406,1758059511591,-418.42013978,0.00032563,6]
[385846407,1758059511601,-3231.76,0.00032563,6]
[385846408,1758059511611,-400.0,0.00032563,6]
[385846409,1758059511620,-436.89,0.00032563,6]
[385846410,1758059511630,-400.0,0.00032563,6]
[385846411,1758059511642,-485.67,0.000326,6]
[385846412,1758059511652,-400.0,0.000326,6]
[385846413,1758059511662,-467.8,0.000326,6]
[385846414,1758059511672,-400.0,0.000326,6]
[385846415,1758059511681,-400.0,0.00032601,6]
[385846416,1758059511691,-400.0,0.00032601,6]
[385846417,1758059511700,-467.83,0.00032601,6]
[385846418,1758059511710,-400.0,0.00032601,6]
[385846419,1758059511719,-400.0,0.00032601,6]
[385846420,1758059511729,-400.0,0.00032601,6]
[385846421,1758059511738,-400.0,0.00032601,6]
[385846422,1758059511747,-400.0,0.00032601,6]
[385846423,1758059511756,-180.58618029,0.00032601,6]
[385846424,1758059511766,-400.0,0.00032601,6]
[385846425,1758059511778,-409.77305883,0.00032601,6]
[385846426,1758059511788,-400.0,0.00032601,6]
[385846427,1758059511798,-400.0,0.00032601,6]
[385846428,1758059511808,-400.0,0.00032601,6]
[385846429,1758059511819,-537.47056236,0.00032601,6]
[385846430,1758059511829,-400.0,0.00032601,6]
[385846431,1758059511839,-452.70465012,0.00032601,6]
[385846432,1758059511850,-453.02,0.00032601,6]
[385846433,1758059511861,-893.66,0.00032601,6]
[385846434,1758059511871,-400.0,0.00032601,6]
[385846435,1758059511882,-400.0,0.00032601,6]
[385846436,1758059511892,-429.49096664,0.00032601,6]
[385846437,1758059511902,-400.0,0.00032601,6]
[385846438,1758059511911,-400.0,0.00032601,6]
[385846439,1758059511920,-400.0,0.00032601,6]
[385846440,1758059511930,-400.0,0.00032601,6]
[385846441,1758059511939,-400.0,0.00032601,6]
[385846442,1758059511948,-400.0,0.00032601,6]
[385846443,1758059511958,-400.0,0.00032601,6]
[385846444,1758059511967,-404.97,0.00032601,6]
[385846445,1758059511976,-431.58,0.00032601,6]
[385846446,1758059511986,-564.94,0.00032601,6]
[385846447,1758059511995,-400.0,0.00032601,6]
[385846448,1758059512005,-475.93,0.00032601,6]
[385846449,1758059512014,-646.81,0.00032601,6]
[385846450,1758059512024,-400.0,0.00032601,6]
[385846451,1758059512033,-400.0,0.00032601,6]
[385846452,1758059512042,-503.49,0.00032601,6]
[385846453,1758059512051,-555.18,0.00032601,6]
[385846454,1758059512060,-493.67,0.00032601,6]
[385846455,1758059512070,-406.48,0.00032601,6]
[385846456,1758059512080,-400.0,0.00032601,6]
[385846457,1758059512089,-472.57,0.00032601,6]
[385846458,1758059512098,-566.4,0.00032601,6]
[385846459,1758059512107,-443.11,0.00032601,6]
[385846460,1758059512116,-400.0,0.00032601,6]
[385846461,1758059512126,-556.41,0.00032601,6]
[385846462,1758059512135,-642.62,0.00032601,6]
[385846463,1758059512144,-526.48,0.00032601,6]
[385846464,1758059512153,-638.73,0.00032601,6]
[385846465,1758059512162,-400.0,0.00032601,6]
[385846466,1758059512171,-400.0,0.00032601,6]
[385846467,1758059512181,-400.0,0.00032601,6]
[385846468,1758059512191,-514.99,0.00032601,6]
[385846469,1758059512202,-477.56,0.00032601,6]
[385846470,1758059512212,-400.0,0.00032601,6]
[385846471,1758059512224,-400.0,0.00032601,6]
[385846472,1758059512233,-824.84,0.00032601,6]
[385846473,1758059512243,-558.91,0.00032601,6]
[385846474,1758059512253,-429.04,0.00032601,6]
[385846475,1758059512262,-771.88,0.00032601,6]
[385846476,1758059512272,-400.0,0.00032601,6]
[385846477,1758059512282,-456.11,0.00032601,6]
[385846478,1758059512294,-400.0,0.00032601,6]
[385846479,1758059512305,-422.65,0.00032601,6]
[385846480,1758059512315,-400.0,0.00032601,6]
[385846481,1758059512325,-400.0,0.00032601,6]
[385846482,1758059512335,-400.0,0.00032601,6]
[385846483,1758059512345,-400.0,0.00032601,6]
[385846484,1758059512354,-400.0,0.00032601,6]
[385846485,1758059512364,-682.71,0.00032601,6]
[385846486,1758059512373,-792.25,0.00032601,6]
[385846487,1758059512383,-1411.58,0.00032601,6]
[385846488,1758059512392,-678.71,0.00032601,6]
[385846489,1758059512406,-876.88,0.00032601,6]
[385846490,1758059512416,-922.72,0.00032601,6]
[385846491,1758059512425,-590.13,0.00032601,6]
[385846492,1758059512435,-400.0,0.00032601,6]
[385846493,1758059512446,-741.55,0.00032601,6]
[385846494,1758059512456,-400.0,0.00032601,6]
[385846495,1758059512466,-400.0,0.00032601,6]
[385846496,1758059512478,-400.0,0.00032601,6]
[385846497,1758059512489,-923.03,0.00032601,6]
[385846498,1758059512499,-590.27,0.00032601,6]
[385846499,1758059512508,-400.0,0.00032602,6]
[385846500,1758059512519,-415.10247077,0.00032602,6]
[385846501,1758059512528,-400.0,0.00032602,6]
[385846502,1758059512538,-400.0,0.00032602,6]
[385846503,1758059512547,-400.0,0.00032602,6]
[385846504,1758059512557,-400.0,0.00032602,6]
[385846505,1758059512567,-424.49676922,0.00032602,6]
[385846506,1758059512577,-400.0,0.00032602,6]
[385846507,1758059512587,-400.0,0.00032602,6]
[385846508,1758059512596,-400.0,0.00032602,6]
[385846509,1758059512607,-400.0,0.00032602,6]
[385846510,1758059512617,-293.72645561,0.00032602,6]
[385846511,1758059512627,-400.0,0.00032602,6]
[385846512,1758059512636,-446.83,0.00032602,6]
[385846513,1758059512646,-400.0,0.00032602,6]
[385846514,1758059512655,-317.27643772,0.00032602,6]
[385846515,1758059512664,-400.0,0.00032602,6]
[385846516,1758059512674,-400.0,0.00032602,6]
[385846517,1758059512684,-400.0,0.00032602,6]
[385846518,1758059512693,-407.45278815,0.00032602,6]
[385846519,1758059512702,-547.28,0.00032602,6]
[385846520,1758059512711,-400.0,0.00032602,6]
[385846521,1758059512720,-400.0,0.00032602,6]
[385846522,1758059512729,-400.0,0.00032602,6]
[385846523,1758059512738,-400.0,0.00032602,6]
[385846524,1758059512747,-400.0,0.00032602,6]
[385846525,1758059512758,-543.16788225,0.00032602,6]
[385846526,1758059512769,-418.26878276,0.00032602,6]
[385846527,1758059512779,-400.0,0.00032602,6]
[385846528,1758059512789,-400.0,0.00032602,6]
[385846529,1758059512799,-400.0,0.00032602,6]
[385846530,1758059512808,-400.0,0.00032602,6]
[385846531,1758059512817,-400.0,0.00032602,6]
[385846532,1758059512826,-400.0,0.00032602,6]
[385846533,1758059512835,-400.0,0.00032602,6]
[385846534,1758059512845,-400.0,0.00032602,6]
[385846535,1758059512854,-404.16,0.00032602,6]
[385846536,1758059512864,-400.0,0.00032602,6]
[385846537,1758059512875,-400.0,0.00032602,6]
[385846538,1758059512886,-528.17,0.00032602,6]
[385846539,1758059512897,-542.9,0.00032602,6]
[385846540,1758059512906,-216.88306234,0.00032602,6]
[385846541,1758059512915,-400.0,0.00032602,6]
[385846542,1758059512925,-400.0,0.00032602,6]
[385846543,1758059512935,-400.0,0.00032602,6]
[385846544,1758059512944,-167.85250521,0.00032602,6]
[385846545,1758059512954,-854.5,0.00032602,6]
[385846546,1758059512963,-403.43,0.00032602,6]
[385846547,1758059512972,-400.0,0.00032602,6]
[385846548,1758059512982,-400.0,0.00032602,6]
[385846549,1758059512991,-400.0,0.00032602,6]
[385846550,1758059513002,-400.0,0.00032602,6]
[385846551,1758059513011,-400.0,0.00032602,6]
[385846552,1758059513021,-400.0,0.00032602,6]
[385846553,1758059513030,-400.0,0.00032602,6]
[385846554,1758059513040,-400.0,0.00032602,6]
[385846555,1758059513049,-372.88307707,0.00032602,6]
[385846556,1758059513059,-400.0,0.00032602,6]
[385846557,1758059513069,-400.0,0.00032602,6]
[385846558,1758059513079,-400.0,0.00032602,6]
[385846559,1758059513090,-219.7765658,0.00032602,6]
[385846560,1758059513101,-400.0,0.00032602,6]
[385846561,1758059513111,-425.79,0.00032602,6]
[385846562,1758059513121,-400.0,0.00032602,6]
[385846563,1758059513135,-440.62,0.00032602,6]
[385846564,1758059513145,-400.0,0.00032602,6]
[385846565,1758059513154,-400.0,0.00032602,6]
[385846566,1758059513163,-400.0,0.00032602,6]
[385846567,1758059513175,-627.06,0.00032602,6]
[385846568,1758059513184,-400.0,0.00032602,6]
[385846569,1758059513194,-400.0,0.00032602,6]
[385846570,1758059513203,-404.88,0.00032602,6]
[385846571,1758059513213,-400.0,0.00032602,6]
[385846572,1758059513222,-400.0,0.00032602,6]
[385846573,1758059513232,-400.0,0.00032602,6]
[385846574,1758059513244,-400.0,0.00032602,6]
[385846575,1758059513253,-597.91,0.00032602,6]
[385846576,1758059513263,-550.75,0.00032602,6]
[385846577,1758059513273,-482.27,0.00032602,6]
[385846578,1758059513285,-400.0,0.00032602,6]
[385846579,1758059513295,-400.0,0.00032602,6]
[385846580,1758059513305,-400.0,0.00032602,6]
[385846581,1758059513314,-489.33,0.00032602,6]
[385846582,1758059513323,-400.0,0.00032602,6]
[385846583,1758059513333,-400.0,0.00032602,6]
[385846584,1758059513342,-400.0,0.00032602,6]
[385846585,1758059513352,-400.44,0.00032602,6]
[385846586,1758059513361,-432.89,0.00032602,6]
[385846587,1758059513371,-1630.47,0.00032602,6]
[385846588,1758059513381,-400.0,0.00032602,6]
[385846589,1758059513390,-400.0,0.00032602,6]
[385846590,1758059513403,-464.0,0.00032602,6]
[385846591,1758059513413,-541.51,0.00032602,6]
[385846592,1758059513422,-400.0,0.00032602,6]
[385846593,1758059513433,-400.0,0.00032602,6]
[385846594,1758059513445,-400.0,0.00032602,6]
[385846595,1758059513455,-400.0,0.00032602,6]
[385846596,1758059513464,-431.13,0.00032602,6]
[385846597,1758059513475,-400.0,0.00032602,6]
[385846598,1758059513484,-666.3,0.00032602,6]
[385846599,1758059513494,-400.0,0.00032602,6]
[385846600,1758059513502,-400.42784397,0.00032602,6]
[385846601,1758059513512,-400.0,0.00032602,6]
[385846602,1758059513522,-411.51749472,0.00032602,6]
[385846603,1758059513531,-400.0,0.00032602,6]
[385846604,1758059513541,-547.93,0.00032602,6]
[385846605,1758059513551,-400.0,0.00032602,6]
[385846606,1758059513562,-400.0,0.00032602,6]
[385846607,1758059513571,-400.0,0.00032602,6]
[385846608,1758059513580,-474.55,0.00032602,6]
[385846609,1758059513589,-681.13,0.00032602,6]
[385846610,1758059513598,-445.76,0.00032602,6]
[385846611,1758059513608,-400.0,0.00032602,6]
[385846612,1758059513617,-400.0,0.00032602,6]
[385846613,1758059513627,-520.69,0.00032602,6]
[385846614,1758059513636,-400.0,0.00032602,6]
[385846615,1758059513646,-402.9,0.00032602,6]
[385846616,1758059513655,-400.0,0.00032602,6]
[385846617,1758059513664,-400.0,0.00032602,6]
[385846618,1758059513673,-400.0,0.00032602,6]
[385846619,1758059513682,-400.0,0.00032602,6]
[385846620,1758059513692,-400.0,0.00032602,6]
[385846621,1758059513701,-400.0,0.00032602,6]
[385846622,1758059513711,-400.0,0.00032602,6]
[385846623,1758059513720,-400.0,0.00032602,6]
[385846624,1758059513729,-520.75,0.00032602,6]
[385846625,1758059513739,-438.72,0.00032602,6]
[385846626,1758059513748,-930.22,0.00032602,6]
[385846627,1758059513757,-400.0,0.00032602,6]
[385846628,1758059513843,-400.0,0.00032602,6]
[385846629,1758059513852,-691.69,0.00032602,6]
[385846630,1758059513861,-541.46,0.00032602,6]
[385846631,1758059513870,-227.223731,0.00032602,6]
[385846632,1758059513879,-400.0,0.00032602,6]
[385846633,1758059513889,-840.93,0.00032602,6]
[385846634,1758059513900,-400.0,0.00032602,6]
[385846635,1758059513911,-400.0,0.00032602,6]
[385846636,1758059513923,-338.72358121,0.00032602,6]
[385846637,1758059513932,-531.61,0.00032602,6]
[385846638,1758059513940,-400.0,0.00032602,6]
[385846639,1758059513949,-400.0,0.00032602,6]
[385846640,1758059513959,-400.0,0.00032602,6]
[385846641,1758059513967,-528.41,0.00032602,6]
[385846642,1758059513977,-400.0,0.00032602,6]
[385846643,1758059513985,-3105.74,0.00032602,6]
[385846644,1758059513994,-400.0,0.00032602,6]
[385846645,1758059514003,-593.33,0.00032602,6]
[385846646,1758059514012,-530.57,0.00032602,6]
[385846647,1758059514021,-400.0,0.00032602,6]
[385846648,1758059514030,-400.0,0.00032602,6]
[385846649,1758059514039,-801.13,0.00032602,6]
[385846650,1758059514048,-400.0,0.00032602,6]
[385846651,1758059514056,-400.0,0.00032602,6]
[385846652,1758059514065,-400.0,0.00032602,6]
[385846653,1758059514074,-400.0,0.00032602,6]
[385846654,1758059514084,-400.0,0.00032602,6]
[385846655,1758059514094,-400.0,0.00032602,6]
[385846656,1758059514103,-476.31248031,0.00032602,6]
[385846657,1758059514113,-720.72,0.00032602,6]
[385846658,1758059514124,-400.0,0.00032602,6]
[385846659,1758059514135,-450.36,0.00032602,6]
[385846660,1758059514144,-400.0,0.00032602,6]
[385846661,1758059514154,-400.0,0.00032602,6]
[385846662,1758059514163,-400.0,0.00032602,6]
[385846663,1758059514172,-400.0,0.00032602,6]
[385846664,1758059514185,-400.0,0.00032602,6]
[385846665,1758059514194,-400.0,0.00032602,6]
[385846666,1758059514206,-400.0,0.00032602,6]
[385846667,1758059514215,-410.50079535,0.00032602,6]
[385846668,1758059514224,-455.66,0.00032602,6]
[385846669,1758059514235,-400.0,0.00032602,6]
[385846670,1758059514245,-400.0,0.00032602,6]
[385846671,1758059514255,-400.0,0.00032602,6]
[385846672,1758059514264,-400.0,0.00032602,6]
[385846673,1758059514275,-452.15,0.00032602,6]
[385846674,1758059514285,-400.0,0.00032602,6]
[385846675,1758059514295,-599.86,0.00032602,6]
[385846676,1758059514306,-1299.74,0.00032602,6]
[385846677,1758059514315,-572.67,0.00032602,6]
[385846678,1758059514325,-400.0,0.00032602,6]
[385846679,1758059514334,-400.0,0.00032602,6]
[385846680,1758059514343,-422.38,0.00032602,6]
[385846681,1758059514352,-400.0,0.00032602,6]
[385846682,1758059514361,-400.0,0.00032602,6]
[385846683,1758059514370,-404.16,0.00032602,6]
[385846684,1758059514379,-400.0,0.00032602,6]
[385846685,1758059514388,-400.0,0.00032602,6]
[385846686,1758059514400,-400.0,0.00032602,6]
[385846687,1758059514410,-400.0,0.00032602,6]
[385846688,1758059514419,-924.76,0.00032602,6]
[385846689,1758059514428,-400.0,0.00032602,6]
[385846690,1758059514437,-1289.24,0.00032602,6]
[385846691,1758059514447,-395.58914157,0.00032602,6]
[385846692,1758059514456,-400.0,0.00032602,6]
[385846693,1758059514466,-400.0,0.00032602,6]
[385846694,1758059514477,-400.0,0.00032602,6]
[385846695,1758059514486,-400.0,0.00032602,6]
[385846696,1758059514497,-400.0,0.00032602,6]
[385846697,1758059514508,-554.69,0.00032602,6]
[385846698,1758059514518,-400.0,0.00032602,6]
[385846699,1758059514527,-799.13,0.00032602,6]
[385846700,1758059514536,-467.79,0.00032602,6]
[385846701,1758059514545,-943.71,0.00032602,6]
[385846702,1758059514554,-400.0,0.00032602,6]
[385846703,1758059514562,-400.0,0.00032602,6]
[385846704,1758059514571,-617.84,0.00032602,6]
[385846705,1758059514580,-347.8206054,0.00032602,6]
[385846706,1758059514589,-562.81,0.00032602,6]
[385846707,1758059514598,-1554.92,0.00032602,6]
[385846708,1758059514607,-472.52,0.00032602,6]
[385846709,1758059514616,-542.01294793,0.00032602,6]
[385846710,1758059514625,-400.0,0.00032602,6]
[385846711,1758059514636,-502.44,0.00032602,6]
[385846712,1758059514646,-400.0,0.00032602,6]
[385846713,1758059514655,-2454.26,0.00032602,6]
[385846714,1758059514664,-400.0,0.00032602,6]
[385846715,1758059514675,-814.45,0.00032602,6]
[385846716,1758059514684,-400.0,0.00032602,6]
[385846717,1758059514695,-400.0,0.00032602,6]
[385846718,1758059514706,-581.21,0.00032602,6]
[385846719,1758059514715,-400.0,0.00032602,6]
[385846720,1758059514724,-2151.75,0.00032602,6]
[385846721,1758059514734,-400.0,0.00032602,6]
[385846722,1758059514745,-400.0,0.00032602,6]
[385846723,1758059514755,-400.0,0.00032602,6]
[385846724,1758059514765,-590.85,0.00032602,6]
[385846725,1758059514775,-400.0,0.00032602,6]
[385846726,1758059514784,-490.35950395,0.00032602,6]
[385846727,1758059514793,-576.61,0.00032602,6]
[385846728,1758059514802,-400.0,0.00032602,6]
[385846729,1758059514811,-616.64,0.00032602,6]
[385846730,1758059514820,-400.0,0.00032602,6]
[385846731,1758059514829,-400.0,0.00032602,6]
[385846732,1758059514839,-426.57,0.00032602,6]
[385846733,1758059514849,-862.95,0.00032602,6]
[385846734,1758059514859,-2554.31,0.00032602,6]
[385846735,1758059514868,-695.75,0.00032602,6]
[385846736,1758059514878,-465.42,0.00032602,6]
[385846737,1758059514887,-528.3,0.00032602,6]
[385846738,1758059514897,-400.0,0.00032602,6]
[385846739,1758059514909,-400.0,0.00032602,6]
[385846740,1758059514920,-629.46,0.00032602,6]
[385846741,1758059514929,-400.0,0.00032602,6]
[385846742,1758059514938,-402.58,0.00032602,6]
[385846743,1758059514948,-760.02,0.00032602,6]
[385846744,1758059514957,-400.0,0.00032602,6]
[385846745,1758059514967,-400.0,0.00032602,6]
[385846746,1758059514977,-573.15,0.00032602,6]
[385846747,1758059514987,-400.0,0.00032602,6]
[385846748,1758059514998,-555.71,0.00032602,6]
[385846749,1758059515009,-400.0,0.00032602,6]
[385846750,1758059515019,-400.0,0.00032602,6]
[385846751,1758059515030,-400.0,0.00032602,6]
[385846752,1758059515040,-400.0,0.00032602,6]
[385846753,1758059515052,-400.0,0.00032602,6]
[385846754,1758059515062,-479.18,0.00032602,6]
[385846755,1758059515073,-447.53,0.00032602,6]
[385846756,1758059515082,-418.11,0.00032602,6]
[385846757,1758059515093,-423.89,0.00032602,6]
[385846758,1758059515102,-450.0,0.00032602,6]
[385846759,1758059515113,-435.17,0.00032602,6]
[385846760,1758059515122,-400.0,0.00032602,6]
[385846761,1758059515131,-400.0,0.00032602,6]
[385846762,1758059515140,-400.0,0.00032602,6]
[385846763,1758059515149,-400.0,0.00032602,6]
[385846764,1758059515158,-778.74,0.00032602,6]
[385846765,1758059515167,-400.0,0.00032602,6]
[385846766,1758059515176,-704.61,0.00032602,6]
[385846767,1758059515186,-400.0,0.00032602,6]
[385846768,1758059515195,-400.0,0.00032602,6]
[385846769,1758059515204,-1172.18,0.00032602,6]
[385846770,1758059515213,-5286.95,0.00032602,6]
[385846771,1758059515225,-400.0,0.00032602,6]
[385846772,1758059515234,-400.0,0.00032602,6]
[385846773,1758059515244,-400.0,0.00032602,6]
[385846774,1758059515254,-542.4,0.00032602,6]
[385846775,1758059515263,-400.0,0.00032602,6]
[385846776,1758059515272,-400.0,0.00032602,6]
[385846777,1758059515281,-400.0,0.00032602,6]
[385846778,1758059515291,-435.09,0.00032602,6]
[385846779,1758059515300,-527.52,0.00032602,6]
[385846780,1758059515309,-551.22,0.00032602,6]
[385846781,1758059515318,-400.0,0.00032602,6]
[385846782,1758059515326,-400.0,0.00032602,6]
[385846783,1758059515335,-400.0,0.00032602,6]
[385846784,1758059515344,-400.0,0.00032602,6]
[385846785,1758059515353,-400.0,0.00032602,6]
[385846786,1758059515362,-483.09,0.00032602,6]
[385846787,1758059515371,-400.0,0.00032602,6]
[385846788,1758059515380,-777.85,0.00032602,6]
[385846789,1758059515389,-400.0,0.00032602,6]
[385846790,1758059515401,-445.13,0.00032602,6]
[385846791,1758059515410,-510.44,0.00032602,6]
[385846792,1758059515419,-650.71,0.00032602,6]
[385846793,1758059515428,-400.0,0.00032602,6]
[385846794,1758059515439,-400.0,0.00032602,6]
[385846795,1758059515448,-632.37,0.00032602,6]
[385846796,1758059515457,-400.0,0.00032602,6]
[385846797,1758059515466,-400.0,0.00032602,6]
[385846798,1758059515476,-400.0,0.00032602,6]
[385846799,1758059515486,-400.0,0.00032602,6]
[385846800,1758059515495,-763.55,0.00032602,6]
[385846801,1758059515504,-400.0,0.00032602,6]
[385846802,1758059515512,-701.89,0.00032602,6]
[385846803,1758059515521,-400.0,0.00032602,6]
[385846804,1758059515530,-620.92,0.00032602,6]
[385846805,1758059515539,-400.0,0.00032602,6]
[385846806,1758059515548,-796.09,0.00032602,6]
[385846807,1758059515558,-400.0,0.00032602,6]
[385846808,1758059515566,-400.0,0.00032602,6]
[385846809,1758059515576,-400.0,0.00032602,6]
[385846810,1758059515585,-400.0,0.00032602,6]
[385846811,1758059515594,-400.0,0.00032602,6]
[385846812,1758059515603,-400.0,0.00032602,6]
[385846813,1758059515612,-400.0,0.00032602,6]
[385846814,1758059515621,-400.0,0.00032602,6]
[385846815,1758059515630,-400.0,0.00032602,6]
[385846816,1758059515639,-400.0,0.00032602,6]
[385846817,1758059515648,-400.0,0.00032602,6]
[385846818,1758059515657,-745.62,0.00032602,6]
[385846819,1758059515666,-400.0,0.00032602,6]
[385846820,1758059515675,-629.24,0.00032602,6]
[385846821,1758059515684,-400.0,0.00032602,6]
[385846822,1758059515694,-447.35,0.00032602,6]
[385846823,1758059515703,-400.0,0.00032602,6]
[385846824,1758059515712,-400.0,0.00032602,6]
[385846825,1758059515721,-400.0,0.00032602,6]
[385846826,1758059515729,-936.1,0.00032602,6]
[385846827,1758059515738,-400.0,0.00032602,6]
[385846828,1758059515747,-400.0,0.00032602,6]
[385846829,1758059515756,-400.0,0.00032602,6]
[385846830,1758059515765,-400.0,0.00032602,6]
[385846831,1758059515774,-400.0,0.00032602,6]
[385846832,1758059515783,-400.0,0.00032602,6]
[385846833,1758059515792,-400.0,0.00032602,6]
[385846834,1758059515802,-1215.29,0.00032602,6]
[385846835,1758059515811,-400.0,0.00032602,6]
[385846836,1758059515820,-256.08687251,0.00032602,6]
[385846837,1758059515829,-400.0,0.00032602,6]
[385846838,1758059515838,-404.66659228,0.00032602,6]
[385846839,1758059515847,-470.35,0.00032602,6]
[385846840,1758059515855,-400.0,0.00032602,6]
[385846841,1758059515865,-400.0,0.00032602,6]
[385846842,1758059515874,-400.0,0.00032602,6]